bitfinex-derivatives/quotes_BTCF0:USTF0_20251023
["timestamp","ask_amount","ask_price","bid_price","bid_amount"]
[1761180839040,0.05819,108010.0,108000.0,0.1283355]
[1761180839238,0.05819,108010.0,108000.0,0.55289532]
[1761180840048,0.05819,108010.0,108000.0,0.34061541]
[1761180841732,0.09146463,108010.0,108000.0,0.34061541]
[1761180841933,0.05819,108010.0,108000.0,0.34061541]
[1761180842334,0.05819,108010.0,108000.0,0.24803991]
[1761180842537,0.45819,108010.0,108000.0,0.24803991]
[1761180842732,0.46736633,108010.0,108000.0,0.24803991]
[1761180842936,0.46736633,108010.0,108000.0,0.03576]
[1761180843240,0.05819,108010.0,108000.0,0.34062291]
[1761180843429,0.45819,108010.0,108000.0,0.34062291]
[1761180845836,0.45819,108010.0,108000.0,0.24803991]
[1761180846231,0.01331,108000.0,107990.0,0.06053579]
[1761180846433,0.03569,107990.0,107980.0,0.27744597]
[1761180846736,0.05819,107990.0,107980.0,0.02251027]
[1761180846936,0.27046991,107990.0,107980.0,0.24839848]
[1761180847141,0.27046991,107990.0,107980.0,0.01823857]
[1761180847637,0.67046991,107990.0,107980.0,0.01823857]
[1761180847832,0.68046991,107990.0,107960.0,0.02477579]
[1761180848037,0.05819,107970.0,107960.0,0.37918734]
[1761180848241,0.04915593,107970.0,107960.0,0.35441155]
[1761180848644,0.26143584,107970.0,107960.0,0.24391425]
[1761180848938,0.26143584,107970.0,107960.0,0.35770155]
[1761180848939,0.04915593,107970.0,107960.0,0.35770155]
[1761180850841,0.05819,107980.0,107970.0,0.1353786]
[1761180851037,0.05819,107980.0,107970.0,0.34765851]
[1761180852339,0.05819,107980.0,107970.0,0.34865851]
[1761180853244,0.05819,107980.0,107970.0,0.25604991]
[1761180854745,0.38663,107980.0,107970.0,0.34865861]
[1761180855443,0.38663,107980.0,107970.0,0.34765861]
[1761180856751,0.03569,107970.0,107960.0,0.135384]
[1761180856944,0.05819,107970.0,107960.0,0.34766391]
[1761180858248,0.34759,107970.0,107960.0,0.34766391]
[1761180858449,0.38651,107970.0,107960.0,0.34766391]
[1761180858642,0.05819,107970.0,107960.0,0.34766391]
[1761180858845,0.38647,107970.0,107960.0,0.34766391]
[1761180859047,0.38647,107970.0,107960.0,0.35166391]
[1761180859752,0.38647,107970.0,107960.0,0.35666391]
[1761180859953,0.05819,107970.0,107960.0,0.37022843]
[1761180860252,0.05819,107970.0,107960.0,0.36522843]
[1761180861152,0.05819,107970.0,107960.0,0.36222843]
[1761180862857,0.05819,107970.0,107960.0,0.35666391]
[1761180863158,0.05819,107970.0,107960.0,0.37022827]
[1761180863346,0.05819,107970.0,107960.0,0.35666391]
[1761180864355,0.04488,107970.0,107960.0,0.3904697]
[1761180864955,0.29979,107980.0,107970.0,0.1380287]
[1761180865160,0.29979,107980.0,107970.0,0.35030861]
[1761180866561,0.69979,107980.0,107970.0,0.36389533]
[1761180866863,0.38635,107980.0,107970.0,0.35030861]
[1761180868254,0.05827,107980.0,107970.0,0.35030861]
[1761180868463,0.38631,107980.0,107970.0,0.35030861]
[1761180868763,0.38627,107980.0,107970.0,0.35130861]
[1761180869154,0.05827,107980.0,107970.0,0.35130861]
[1761180869365,0.38623,107980.0,107970.0,0.35030861]
[1761180870165,0.99850991,107980.0,107970.0,0.01461456]
[1761180870758,0.67054991,107980.0,107970.0,0.01461456]
[1761180870960,0.99874991,107980.0,107970.0,0.01461456]
[1761180871564,0.99874991,107980.0,107970.0,0.10622326]
[1761180871864,0.67054991,107980.0,107970.0,0.10622326]
[1761180872058,0.67054991,107980.0,107970.0,0.36392317]
[1761180872059,0.05827,107980.0,107970.0,0.36392317]
[1761180872252,0.38643,107980.0,107970.0,0.35030861]
[1761180872454,0.05827,107980.0,107970.0,0.35030861]
[1761180872661,0.38647,107980.0,107970.0,0.35030861]
[1761180873265,0.38647,107980.0,107970.0,0.3750844]
[1761180874262,0.38647,107980.0,107970.0,0.3780844]
[1761180874464,0.01331,107990.0,107970.0,0.99436431]
[1761180874654,0.05827,108000.0,107990.0,0.1380115]
[1761180874861,0.05827,108000.0,107990.0,0.35029141]
[1761180875061,0.05827,108000.0,107990.0,0.3750672]
[1761180875367,0.05827,108000.0,107990.0,0.40833211]
[1761180876758,0.05827,108000.0,107990.0,0.1960522]
[1761180876961,0.05827,108000.0,107990.0,0.40833211]
[1761180877260,0.05827,108000.0,107990.0,0.3750672]
[1761180877460,0.05827,108000.0,107990.0,0.40833211]
[1761180877673,0.05827,108000.0,107990.0,0.3750672]
[1761180877887,0.05827,108000.0,107990.0,0.40833211]
[1761180878274,0.05827,108000.0,107990.0,0.3750672]
[1761180879178,0.05875,108000.0,107990.0,0.16278729]
[1761180879482,0.05875,108000.0,107990.0,0.3750672]
[1761180879674,0.27102991,108000.0,107990.0,0.07019579]
[1761180879879,0.05875,108000.0,107990.0,0.3750672]
[1761180880775,0.38687,108000.0,107990.0,0.35147734]
[1761180881480,0.04496,108000.0,107990.0,0.35147734]
[1761180881786,0.04496,108000.0,107990.0,0.35825734]
[1761180882082,0.04496,108000.0,107990.0,0.33348155]
[1761180882484,0.05875,108000.0,107990.0,0.33348155]
[1761180882685,0.05875,108000.0,107990.0,0.32670155]
[1761180882885,0.05875,108000.0,107990.0,0.1380115]
[1761180883586,0.05875,108000.0,107990.0,0.32670155]
[1761180884076,0.05875,108000.0,107990.0,0.1380115]
[1761180889687,0.05875,108000.0,107990.0,0.32670155]
[1761180891484,0.05875,108000.0,107990.0,0.1380115]
[1761180893790,0.05875,108000.0,107990.0,0.16278729]
[1761180893991,0.05875,108000.0,107990.0,0.1380115]
[1761180894197,0.05875,108000.0,107990.0,0.16278729]
[1761180895494,0.05875,108000.0,107990.0,0.1380115]
[1761180896194,0.05875,108000.0,107990.0,0.16278729]
[1761180896395,0.05875,108000.0,107990.0,0.1380115]
[1761180898298,0.05875,108000.0,107990.0,0.16278729]
[1761180899996,0.45875,108000.0,107990.0,0.16278729]
[1761180900302,0.64744005,108000.0,107990.0,0.16278729]
[1761180900499,0.45875,108000.0,107990.0,0.16278729]
[1761180900900,0.45875,108000.0,107990.0,0.1380115]
[1761180901101,0.01267,107990.0,107980.0,0.1947447]
[1761180901301,0.05872,107990.0,107980.0,0.16147979]
[1761180901498,0.45872,107990.0,107980.0,0.16147979]
[1761180902091,0.46805356,107990.0,107980.0,0.16147979]
[1761180902295,0.46805356,107990.0,107980.0,0.16447979]
[1761180903199,0.02285,107990.0,107980.0,0.38643475]
[1761180903405,0.04605,107990.0,107980.0,0.39352475]
[1761180903600,0.04605,107990.0,107980.0,0.2108347]
[1761180903809,0.05872,107990.0,107980.0,0.2108347]
[1761180904007,0.05872,107990.0,107980.0,0.2037447]
[1761180904705,0.02285,107990.0,107980.0,0.2037447]
[1761180904901,0.05872,107990.0,107980.0,0.2037447]
[1761180907202,0.64741005,107990.0,107980.0,0.0670407]
[1761180907396,0.74552562,107990.0,107970.0,0.02477579]
[1761180907594,0.59985099,107980.0,107960.0,0.1506546]
[1761180907808,0.05872,107970.0,107960.0,0.20842596]
[1761180908294,0.05872,107970.0,107960.0,0.17516105]
[1761180909708,0.05872,107970.0,107960.0,0.15038526]
[1761180910003,0.05872,107970.0,107960.0,0.17516105]
[1761180910209,0.05972,107970.0,107960.0,0.15038526]
[1761180910706,0.05872,107970.0,107960.0,0.15038526]
[1761180911313,0.05972,107970.0,107960.0,0.15038526]
[1761180912603,0.04705,107970.0,107960.0,0.3728811]
[1761180912806,0.05972,107970.0,107960.0,0.3728811]
[1761180913008,0.05972,107970.0,107960.0,0.3638511]
[1761180913204,0.05972,107970.0,107960.0,0.17516105]
[1761180913604,0.05972,107970.0,107960.0,0.15038526]
[1761180914909,0.05872,107970.0,107960.0,0.15038526]
[1761180915112,0.05972,107970.0,107960.0,0.15038526]
[1761180916212,0.24841005,107970.0,107960.0,0.15038866]
[1761180916410,0.05972,107970.0,107960.0,0.15038866]
[1761180916613,0.45972,107970.0,107960.0,0.15038866]
[1761180916909,0.45972,107970.0,107960.0,0.05777136]
[1761180917214,0.24841005,107970.0,107960.0,0.01366136]
[1761180918615,0.64841005,107970.0,107960.0,0.01366136]
[1761180923209,0.45972,107970.0,107960.0,0.03511136]
[1761180923513,0.64841005,107970.0,107960.0,0.01366136]
[1761180924519,0.64841005,107970.0,107960.0,0.03522136]
[1761180924817,0.05972,107970.0,107960.0,0.05850136]
[1761180925021,0.38716,107970.0,107960.0,0.15111856]
[1761180925519,0.05972,107970.0,107960.0,0.15111856]
[1761180925820,0.38716,107970.0,107960.0,0.15111856]
[1761180926114,0.37258,107970.0,107960.0,0.74883861]
[1761180926326,0.38549,107970.0,107960.0,0.55111856]
[1761180927413,0.38549,107970.0,107960.0,0.55112364]
[1761180930619,0.38549,107970.0,107960.0,0.73981369]
[1761180932226,0.38449,107970.0,107960.0,0.73981369]
[1761180932429,0.38449,107970.0,107960.0,0.74381369]
[1761180932620,0.38449,107970.0,107960.0,0.55512364]
[1761180932818,0.38449,107970.0,107960.0,0.76462483]
[1761180933119,0.38549,107970.0,107960.0,0.76462483]
[1761180933922,0.04514,107970.0,107960.0,0.77140483]
[1761180934120,0.001,107970.0,107960.0,0.80466974]
[1761180934321,0.001,107970.0,107960.0,0.81607559]
[1761180935422,0.37138,107980.0,107970.0,0.1388887]
[1761180935720,0.37138,107980.0,107970.0,0.35240546]
[1761180936224,0.37138,107980.0,107970.0,0.38567037]
[1761180936426,0.38429,107980.0,107970.0,0.38567037]
[1761180936622,0.38429,107980.0,107970.0,0.39267037]
[1761180937228,0.37138,107980.0,107970.0,0.80564037]
[1761180937727,0.37138,107980.0,107970.0,0.78081366]
[1761180938024,0.37138,107980.0,107970.0,0.80564897]
[1761180938223,0.37138,107980.0,107970.0,0.80264897]
[1761180938224,0.38429,107980.0,107970.0,0.80264897]
[1761180938425,0.38429,107980.0,107970.0,0.60995892]
[1761180938625,0.38529,107980.0,107970.0,0.60995892]
[1761180938928,0.38429,107980.0,107970.0,0.60995892]
[1761180939226,0.38429,107980.0,107970.0,0.58369401]
[1761180940027,0.38429,107980.0,107970.0,0.57072401]
[1761180940731,0.38429,107980.0,107970.0,0.78308659]
[1761180942124,0.05697,107980.0,107970.0,0.78308659]
[1761180942325,0.38413,107980.0,107970.0,0.78308659]
[1761180943630,0.05697,107980.0,107970.0,0.78308659]
[1761180943829,0.38409,107980.0,107970.0,0.78308659]
[1761180946031,0.38409,107980.0,107970.0,0.75825128]
[1761180946232,0.59645258,107980.0,107970.0,0.5458887]
[1761180946433,0.05697,107980.0,107970.0,0.5458887]
[1761180946636,0.05697,107980.0,107970.0,0.78308659]
[1761180947522,0.26933258,107980.0,107970.0,0.75825128]
[1761180947727,0.05697,107980.0,107970.0,0.75825128]
[1761180947922,0.26933258,107980.0,107970.0,0.5458887]
[1761180948124,0.05697,107980.0,107970.0,0.5458887]
[1761180948329,0.26933258,107980.0,107970.0,0.17072401]
[1761180948636,0.66933258,107980.0,107970.0,0.17072401]
[1761180948835,0.05697,107980.0,107970.0,0.38308659]
[1761180949031,0.04406,107980.0,107970.0,0.17757401]
[1761180949234,0.05697,107980.0,107970.0,0.38308659]
[1761180950740,0.05697,107980.0,107970.0,0.35825128]
[1761180951139,0.05697,107980.0,107970.0,0.38308659]
[1761180951830,0.05697,107980.0,107970.0,0.35825128]
[1761180952130,0.05697,107980.0,107970.0,0.38308659]
[1761180952531,0.26933258,107980.0,107970.0,0.17072401]
[1761180952731,0.26933258,107980.0,107970.0,0.1458887]
[1761180953036,0.26933258,107980.0,107970.0,0.05328]
[1761180953339,0.29429405,107980.0,107970.0,0.05328]
[1761180954632,0.29429405,107980.0,107970.0,0.1458886]
[1761180955539,0.29429405,107980.0,107970.0,0.17072391]
[1761180956343,0.69429405,107980.0,107970.0,0.07811531]
[1761180956742,0.48193147,107980.0,107970.0,0.07811531]
[1761180956941,0.69429405,107980.0,107970.0,0.07811531]
[1761180957240,0.69429405,107980.0,107970.0,0.03183531]
[1761180957543,0.69429405,107980.0,107970.0,0.007]
[1761180959837,0.93993126,107980.0,107970.0,0.02067874]
[1761180960040,0.0585,107970.0,107960.0,0.02483531]
[1761180960236,0.0585,107960.0,107950.0,0.16933601]
[1761180960440,0.26182748,107960.0,107950.0,0.16933601]
[1761180960630,0.26182748,107960.0,107950.0,0.03326491]
[1761180960835,0.28681455,107960.0,107950.0,0.06833899]
[1761180961041,0.28681455,107960.0,107950.0,0.04345]
[1761180961239,0.0585,107950.0,107940.0,0.19895763]
[1761180961440,0.59770258,107950.0,107940.0,0.16569272]
[1761180962233,0.59770258,107950.0,107940.0,0.05098242]
[1761180962546,0.59770258,107950.0,107940.0,0.04817343]
[1761180963446,0.59770258,107950.0,107940.0,0.02609343]
[1761180963649,0.59770258,107950.0,107940.0,0.00472343]
[1761180963844,0.59770258,107950.0,107940.0,0.02609343]
[1761180964246,0.59770258,107950.0,107940.0,0.04817343]
[1761180964845,0.60713704,107950.0,107940.0,0.02609343]
[1761180965447,0.60713704,107950.0,107940.0,0.00472343]
[1761180965848,0.60713704,107950.0,107940.0,0.04817343]
[1761180967044,0.60713704,107950.0,107940.0,0.02680343]
[1761180967249,0.60713704,107950.0,107940.0,0.00472343]
[1761180968749,0.60713704,107950.0,107940.0,0.02609343]
[1761180970948,0.60713704,107950.0,107940.0,0.00472343]
[1761180971843,0.0137,107930.0,107920.0,0.37334487]
[1761180972050,0.38526,107930.0,107920.0,0.37334487]
[1761180972849,0.38533304,107930.0,107920.0,0.37334487]
[1761180977149,0.38533304,107930.0,107920.0,0.34845588]
[1761180977852,0.34977304,107930.0,107920.0,0.36136588]
[1761180978052,0.34977304,107930.0,107920.0,0.38625487]
[1761180978352,0.37163304,107930.0,107920.0,0.38625487]
[1761180980347,0.38533304,107930.0,107920.0,0.38625487]
[1761180981846,0.38533304,107930.0,107920.0,0.37334487]
[1761180985255,0.38533304,107930.0,107920.0,0.40660978]
[1761180987054,0.38533304,107930.0,107920.0,0.42005978]
[1761180987459,0.38533304,107930.0,107920.0,0.40660978]
[1761180988260,0.38533304,107930.0,107920.0,0.38172079]
[1761180988959,0.38533304,107930.0,107920.0,0.16935821]
[1761180989159,0.38533304,107930.0,107920.0,0.43160422]
[1761180991960,0.38533304,107930.0,107920.0,0.39833931]
[1761180999764,0.32667304,107930.0,107920.0,0.81178931]
[1761180999967,7.304e-05,107930.0,107920.0,0.81178931]
[1761181001565,7.304e-05,107930.0,107920.0,0.82857392]
[1761181002676,7.304e-05,107930.0,107920.0,0.80507951]
[1761181003971,7.304e-05,107930.0,107920.0,0.94767951]
[1761181007270,0.02129304,107930.0,107920.0,0.88101147]
[1761181007469,0.04319304,107930.0,107920.0,0.88101147]
[1761181008266,0.04319304,107930.0,107920.0,0.48101147]
[1761181009278,0.02129304,107930.0,107920.0,0.48101147]
[1761181009467,7.304e-05,107930.0,107920.0,0.48101147]
[1761181010473,7.304e-05,107930.0,107920.0,0.66987964]
[1761181011479,7.304e-05,107930.0,107920.0,0.48101147]
[1761181014179,7.304e-05,107930.0,107920.0,0.88101147]
[1761181014380,0.0473949,107960.0,107950.0,0.1366758]
[1761181014578,0.0473949,107960.0,107950.0,0.16151814]
[1761181016595,0.05676007,107960.0,107950.0,0.16151814]
[1761181017390,0.05676007,107960.0,107950.0,0.1366758]
[1761181017588,0.0473949,107960.0,107950.0,0.1366758]
[1761181019092,0.05665579,107960.0,107950.0,0.1366758]
[1761181019289,0.08164286,107960.0,107950.0,0.1366758]
[1761181019496,0.08164286,107960.0,107950.0,0.02214]
[1761181019889,0.08164286,107960.0,107950.0,0.1147657]
[1761181020089,0.08164286,107960.0,107950.0,0.1366757]
[1761181021294,0.07238197,107960.0,107950.0,0.1366757]
[1761181021996,0.05651,107950.0,107940.0,0.1366786]
[1761181022297,0.08148618,107950.0,107940.0,0.1366786]
[1761181022894,0.04273,107950.0,107940.0,0.33410677]
[1761181023094,0.04273,107950.0,107940.0,0.35894911]
[1761181023392,0.10564571,107960.0,107950.0,0.0926257]
[1761181023603,0.10564571,107960.0,107950.0,0.1366757]
[1761181023788,0.07237108,107960.0,107950.0,0.32554387]
[1761181023987,0.07237108,107960.0,107950.0,0.1366757]
[1761181027194,0.06770618,107960.0,107950.0,0.33463387]
[1761181027394,0.06770618,107960.0,107950.0,0.35947621]
[1761181028195,0.08148618,107960.0,107950.0,0.35038621]
[1761181028501,0.08148618,107960.0,107950.0,0.16151804]
[1761181029199,0.08148618,107960.0,107950.0,0.48803804]
[1761181030794,0.08148618,107960.0,107950.0,0.16151804]
[1761181032107,0.05651,107960.0,107950.0,0.19464116]
[1761181033200,0.02149,107960.0,107950.0,0.39259933]
[1761181033407,0.11374081,107970.0,107960.0,0.1366672]
[1761181037307,0.08046618,107970.0,107960.0,0.1366672]
[1761181038111,0.11374081,107970.0,107960.0,0.1366672]
[1761181039108,0.08046618,107970.0,107960.0,0.16150954]
[1761181041013,0.08046618,107970.0,107960.0,0.06889234]
[1761181041310,0.08046618,107970.0,107960.0,0.04698234]
[1761181041810,0.48046618,107970.0,107960.0,0.04698234]
[1761181042315,0.66933435,107970.0,107960.0,0.02484234]
[1761181046507,0.01262,107960.0,107950.0,0.19388576]
[1761181046706,0.05802,107960.0,107950.0,0.19388576]
[1761181047911,0.99834435,107960.0,107950.0,0.02484234]
[1761181050512,1.03161898,107960.0,107940.0,0.19323486]
[1761181050712,0.05572,107950.0,107940.0,0.19323486]
[1761181054618,0.05572,107950.0,107940.0,0.10060546]
[1761181054815,0.24458817,107950.0,107940.0,0.10060546]
[1761181055221,0.26956435,107950.0,107940.0,0.04598234]
[1761181055516,0.01278,107940.0,107930.0,0.19324266]
[1761181055713,0.05572,107940.0,107930.0,0.19324266]
[1761181057825,0.06491895,107940.0,107930.0,0.19324266]
[1761181059222,0.06491895,107940.0,107930.0,0.16011954]
[1761181061933,0.06491895,107940.0,107930.0,0.1352772]
[1761181064828,0.27748948,107940.0,107930.0,0.1352772]
[1761181067425,0.06491895,107940.0,107930.0,0.1352772]
[1761181067729,0.27748948,107940.0,107930.0,0.1352772]
[1761181069531,0.27748948,107940.0,107930.0,0.34784773]
[1761181071534,0.27748948,107940.0,107930.0,0.37269007]
[1761181071833,0.91006001,107940.0,107930.0,0.02484234]
[1761181072135,0.05572,107920.0,107910.0,0.07576312]
[1761181072322,0.3822,107920.0,107910.0,0.05639765]
[1761181072724,0.59477053,107920.0,107910.0,0.05639765]
[1761181074032,0.59477053,107920.0,107910.0,0.04264]
[1761181078031,0.59477053,107920.0,107900.0,0.09730151]
[1761181078237,0.26963053,107910.0,107900.0,0.35610234]
[1761181078436,0.26963053,107910.0,107900.0,0.36915234]
[1761181080143,0.05706,107910.0,107900.0,0.14353181]
[1761181080333,0.26963053,107910.0,107900.0,0.35610234]
[1761181080941,0.04387,107930.0,107920.0,0.1492009]
[1761181081137,0.04387,107930.0,107920.0,0.36177143]
[1761181081442,0.37039,107930.0,107920.0,0.1492009]
[1761181081639,0.37039,107930.0,107920.0,0.36177143]
[1761181081640,0.58296053,107930.0,107920.0,0.36177143]
[1761181081837,0.37039,107930.0,107920.0,0.36177143]
[1761181084549,0.59615053,107930.0,107920.0,0.1492009]
[1761181084750,0.59615053,107930.0,107920.0,0.04623]
[1761181085450,0.59615053,107930.0,107910.0,0.12577742]
[1761181085642,0.26963053,107920.0,107910.0,0.17200742]
[1761181085840,0.05706,107920.0,107910.0,0.38457795]
[1761181086747,0.26963053,107920.0,107910.0,0.38457795]
[1761181086948,0.26963053,107920.0,107910.0,0.17200742]
[1761181088053,0.26963053,107920.0,107910.0,0.38457795]
[1761181089553,0.05706,107920.0,107910.0,0.38457795]
[1761181090251,0.26963053,107920.0,107910.0,0.38457795]
[1761181090755,0.26963053,107920.0,107910.0,0.17200742]
[1761181090954,0.26963053,107920.0,107910.0,0.1388843]
[1761181093156,0.26963053,107920.0,107910.0,0.17200742]
[1761181095060,0.26963053,107920.0,107910.0,0.38457795]
[1761181095358,0.05706,107920.0,107910.0,0.38457795]
[1761181095558,0.26963053,107920.0,107910.0,0.38457795]
[1761181096259,0.05706,107920.0,107910.0,0.38457795]
[1761181097055,0.26963053,107920.0,107910.0,0.38457795]
[1761181097461,0.26963053,107920.0,107910.0,0.35145483]
[1761181097858,0.26963053,107920.0,107910.0,0.38457795]
[1761181098061,0.05706,107920.0,107910.0,0.35145483]
[1761181098262,0.05706,107920.0,107910.0,0.38457795]
[1761181099961,0.26963053,107920.0,107910.0,0.38457795]
[1761181100264,0.05706,107920.0,107910.0,0.38457795]
[1761181100462,0.04387,107920.0,107910.0,0.79489795]
[1761181100664,0.62107675,107930.0,107920.0,0.1474407]
[1761181100864,0.06883622,107930.0,107920.0,0.36001123]
[1761181101266,0.28140675,107930.0,107920.0,0.36001123]
[1761181101467,0.29459675,107930.0,107920.0,0.36001123]
[1761181102064,0.29459675,107930.0,107920.0,0.1388807]
[1761181102769,0.29459675,107930.0,107920.0,0.36001123]
[1761181103361,0.29459675,107930.0,107920.0,0.1474407]
[1761181103563,0.06883622,107930.0,107920.0,0.36001123]
[1761181103763,0.28140675,107930.0,107920.0,0.36001123]
[1761181103969,0.29499675,107930.0,107920.0,0.1474407]
[1761181104272,0.29499675,107930.0,107920.0,0.1388807]
[1761181106868,0.08242622,107930.0,107920.0,0.1388807]
[1761181107171,0.29499675,107930.0,107920.0,0.1388807]
[1761181109375,0.32827138,107930.0,107920.0,0.1388807]
[1761181110071,0.32827138,107930.0,107920.0,0.04623]
[1761181110672,0.32827138,107930.0,107920.0,0.02311]
[1761181111875,0.05815,107920.0,107910.0,0.2207212]
[1761181112075,0.29568675,107920.0,107910.0,0.1379134]
[1761181113274,0.62212675,107920.0,107910.0,0.1379134]
[1761181113576,0.65540138,107920.0,107910.0,0.1379134]
[1761181118468,0.65540138,107920.0,107910.0,0.02301]
[1761181118671,0.01359,107910.0,107900.0,0.50219693]
[1761181118875,0.29573908,107910.0,107900.0,0.50219693]
[1761181119680,0.29573908,107910.0,107900.0,0.46907381]
[1761181120276,0.29573908,107910.0,107900.0,0.14255381]
[1761181122075,0.27072053,107910.0,107900.0,0.17567693]
[1761181124682,0.05815,107910.0,107900.0,0.17567693]
[1761181126183,0.05815,107910.0,107900.0,0.04989371]
[1761181126378,0.05815,107910.0,107900.0,0.14256171]
[1761181126576,0.24720057,107910.0,107900.0,0.14256171]
[1761181126976,0.05815,107910.0,107900.0,0.14256171]
[1761181127180,0.67221912,107910.0,107900.0,0.00463371]
[1761181127374,0.64720057,107910.0,107900.0,0.00463371]
[1761181127575,0.67221912,107910.0,107900.0,0.00463371]
[1761181127882,0.67221912,107910.0,107900.0,0.01831541]
[1761181128683,0.48316855,107910.0,107900.0,0.15624341]
[1761181129084,0.48316855,107910.0,107900.0,0.14256171]
[1761181129386,0.64720057,107910.0,107900.0,0.00463371]
[1761181129580,0.67221912,107910.0,107900.0,0.01831522]
[1761181130486,0.67221912,107910.0,107900.0,0.06357522]
[1761181131586,0.67221912,107910.0,107900.0,0.01831522]
[1761181131775,0.67221912,107910.0,107900.0,0.04132522]
[1761181134381,0.67221912,107910.0,107900.0,0.01831522]
[1761181136481,0.67221912,107910.0,107900.0,0.06412522]
[1761181137887,0.64720057,107910.0,107900.0,0.06412522]
[1761181138490,0.67221912,107910.0,107900.0,0.06412522]
[1761181140194,0.67221912,107910.0,107900.0,0.15679322]
[1761181140587,0.05815,107910.0,107900.0,0.14311171]
[1761181140787,0.38459,107910.0,107900.0,0.14311171]
[1761181140988,0.38459,107910.0,107900.0,0.16802357]
[1761181141694,0.38459,107910.0,107900.0,0.07535557]
[1761181141896,0.57364057,107910.0,107900.0,0.02954557]
[1761181142098,0.59865912,107910.0,107900.0,0.01831]
[1761181142292,0.99865912,107910.0,107900.0,0.01831]
[1761181142795,0.99865912,107910.0,107900.0,0.06412]
[1761181143295,0.99865912,107910.0,107900.0,0.01831]
[1761181146799,0.59865912,107910.0,107900.0,0.01831]
[1761181146999,0.59865912,107910.0,107900.0,0.04143]
[1761181148101,0.59865912,107910.0,107900.0,0.06412]
[1761181150901,0.59865912,107910.0,107900.0,0.04143]
[1761181151704,0.59865912,107910.0,107900.0,0.01831]
[1761181152202,0.6069152,107910.0,107900.0,0.01831]
[1761181153704,0.6069152,107910.0,107900.0,0.04143]
[1761181153900,0.65692127,107910.0,107900.0,0.04143]
[1761181154701,0.33048127,107910.0,107900.0,0.156788]
[1761181154902,0.41782463,107910.0,107900.0,0.06412]
[1761181155309,0.4678307,107910.0,107900.0,0.06412]
[1761181156510,0.4678307,107910.0,107900.0,0.156788]
[1761181156806,0.65688127,107910.0,107900.0,0.156788]
[1761181157511,0.4678307,107910.0,107900.0,0.156788]
[1761181162001,0.44285001,107910.0,107900.0,0.18169986]
[1761181163514,0.44285001,107910.0,107900.0,0.08903186]
[1761181163815,0.44285001,107910.0,107900.0,0.18169986]
[1761181165222,0.11645001,107910.0,107900.0,0.18169986]
[1761181165716,0.30550058,107910.0,107900.0,0.18169986]
[1761181167021,0.11645001,107910.0,107900.0,0.18169986]
[1761181167821,0.11645001,107910.0,107900.0,0.16802357]
[1761181168025,0.11645001,107910.0,107900.0,0.18173229]
[1761181169723,0.11645001,107910.0,107900.0,0.08906429]
[1761181169924,0.11645028,107910.0,107900.0,0.08911308]
[1761181170125,0.30550085,107910.0,107900.0,0.08911308]
[1761181174138,0.30550085,107910.0,107900.0,0.18178108]
[1761181174529,0.11645028,107910.0,107900.0,0.18178108]
[1761181183447,0.11645028,107910.0,107900.0,0.20119548]
[1761181184147,0.11645028,107910.0,107900.0,0.16807236]
[1761181184347,0.11645028,107910.0,107900.0,0.20119548]
[1761181184943,0.11645028,107910.0,107900.0,0.16807236]
[1761181185240,0.08317565,107910.0,107900.0,0.16807236]
[1761181185447,0.08317565,107910.0,107900.0,0.18906483]
[1761181186746,0.2958484,107910.0,107900.0,0.18906483]
[1761181187246,0.2958484,107910.0,107900.0,0.2140282]
[1761181188051,0.2958484,107910.0,107900.0,0.2011982]
[1761181189352,0.2958484,107910.0,107900.0,0.2011981]
[1761181189652,0.2958484,107910.0,107900.0,0.16807498]
[1761181189847,0.32912303,107910.0,107900.0,0.16807498]
[1761181190050,0.2958484,107910.0,107900.0,0.16807498]
[1761181190550,0.32912303,107910.0,107900.0,0.16807498]
[1761181190750,0.2958484,107910.0,107900.0,0.16807498]
[1761181190950,0.32912303,107910.0,107900.0,0.16807498]
[1761181192056,0.30409738,107910.0,107900.0,0.16807498]
[1761181199462,0.07029635,107920.0,107910.0,0.1450693]
[1761181199761,0.2969091,107920.0,107910.0,0.38244255]
[1761181199962,0.2969091,107920.0,107910.0,0.70876255]
[1761181200663,0.2969091,107920.0,107910.0,0.52103583]
[1761181200960,0.08423635,107920.0,107910.0,0.73370858]
[1761181201560,0.08423635,107920.0,107910.0,0.70044808]
[1761181201957,0.05921,107920.0,107910.0,0.67550205]
[1761181202156,0.09248463,107920.0,107910.0,0.67550205]
[1761181203961,0.09248463,107920.0,107910.0,0.58284275]
[1761181204154,0.30515738,107920.0,107910.0,0.04385]
[1761181204355,0.05921,107910.0,107900.0,0.16609624]
[1761181204556,0.33015537,107910.0,107900.0,0.46743021]
[1761181204855,0.11748337,107910.0,107900.0,0.68010296]
[1761181205062,0.10354337,107910.0,107900.0,0.69293296]
[1761181205261,0.10354337,107910.0,107900.0,0.36665296]
[1761181205753,0.11748337,107910.0,107900.0,0.14115021]
[1761181206162,0.11748337,107910.0,107900.0,0.35382296]
[1761181207850,0.11748337,107910.0,107900.0,0.14115021]
[1761181208051,0.11748337,107910.0,107900.0,0.35382296]
[1761181208965,0.11748337,107910.0,107900.0,0.26115646]
[1761181209164,0.30515738,107910.0,107900.0,0.04848371]
[1761181209852,0.30515738,107910.0,107900.0,0.14115161]
[1761181210063,0.09248463,107910.0,107900.0,0.35382436]
[1761181211263,0.11748318,107910.0,107900.0,0.35382436]
[1761181212066,0.08420855,107910.0,107900.0,0.37877039]
[1761181212263,0.2968813,107910.0,107900.0,0.16609764]
[1761181215262,0.2968813,107910.0,107900.0,0.02957974]
[1761181215470,0.6231613,107910.0,107900.0,0.02957974]
[1761181215856,0.6231613,107910.0,107900.0,0.05115974]
[1761181217877,0.6231613,107910.0,107900.0,0.16609764]
[1761181218369,0.08420855,107910.0,107900.0,0.37877039]
[1761181218765,0.05921,107910.0,107900.0,0.37877039]
[1761181221978,0.02287,107910.0,107900.0,0.42486089]
[1761181222173,0.02287,107910.0,107900.0,0.72619486]
[1761181222380,0.02287,107910.0,107900.0,0.77587954]
[1761181223087,0.04527,107910.0,107900.0,0.77587954]
[1761181223991,0.04523,107910.0,107900.0,0.77587954]
[1761181226400,0.38447,107920.0,107910.0,0.1455693]
[1761181226586,0.38447,107920.0,107910.0,0.38315315]
[1761181228597,0.38447,107920.0,107910.0,0.37459315]
[1761181229296,0.40946855,107920.0,107910.0,0.37459315]
[1761181229599,0.38447,107920.0,107910.0,0.37459315]
[1761181230097,0.37053,107920.0,107910.0,0.38315315]
[1761181230600,0.37053,107920.0,107910.0,0.41641365]
[1761181231998,0.39552855,107920.0,107910.0,0.38315315]
[1761181232994,0.08016318,107930.0,107920.0,0.0926505]
[1761181233294,0.08016318,107930.0,107920.0,0.38748435]
[1761181233295,0.10252318,107930.0,107920.0,0.38748435]
[1761181233599,0.06924855,107930.0,107920.0,0.71372435]